[Event "Live Chess"]
[Site "Chess.com"]
[Date "2024.06.01"]
[Round "-"]
[White "Pedrada88"]
[Black "gmnorfolk"]
[Result "1-0"]
[WhiteElo "2552"]
[BlackElo "2132"]
[TimeControl "300"]
[EndTime "9:26:21 PDT"]
[Termination "Pedrada88 won on time"]

1. e4 {[%clk 0:04:57.8]} 1... e5 {[%clk 0:04:53.8]} 2. Nf3 {[%clk 0:04:56.9]}
2... Nc6 {[%clk 0:04:53.3]} 3. Bb5 {[%clk 0:04:56.3]} 3... a6 {[%clk 0:04:52.3]}
4. Bxc6 {[%clk 0:04:55.5]} 4... dxc6 {[%clk 0:04:50]} 5. O-O {[%clk 0:04:55.4]}
5... Qf6 {[%clk 0:04:46.7]} 6. d4 {[%clk 0:04:53.8]} 6... exd4 {[%clk
0:04:41.3]} 7. Bg5 {[%clk 0:04:52.9]} 7... Qd6 {[%clk 0:04:40.4]} 8. Nxd4 {[%clk
0:04:51.8]} 8... Bd7 {[%clk 0:04:33.3]} 9. Nc3 {[%clk 0:04:50.1]} 9... Be7
{[%clk 0:04:31.7]} 10. Be3 {[%clk 0:04:48.9]} 10... c5 {[%clk 0:04:26.8]} 11.
Nf5 {[%clk 0:04:45.4]} 11... Qxd1 {[%clk 0:04:19.6]} 12. Raxd1 {[%clk
0:04:45.3]} 12... Bf8 {[%clk 0:03:34.3]} 13. Nd5 {[%clk 0:04:35.6]} 13... O-O-O
{[%clk 0:03:32]} 14. Bf4 {[%clk 0:04:35]} 14... Bxf5 {[%clk 0:03:29.1]} 15. exf5
{[%clk 0:04:24]} 15... Bd6 {[%clk 0:03:24.8]} 16. Bxd6 {[%clk 0:04:21.2]} 16...
Rxd6 {[%clk 0:03:21.5]} 17. Rfe1 {[%clk 0:04:20.3]} 17... Nh6 {[%clk 0:03:10.5]}
18. Re7 {[%clk 0:04:11.9]} 18... Rhd8 {[%clk 0:02:58.9]} 19. Rxc7+ {[%clk
0:03:56.3]} 19... Kb8 {[%clk 0:02:55.9]} 20. Rxc5 {[%clk 0:03:56.2]} 20... b6
{[%clk 0:02:44.9]} 21. Rc4 {[%clk 0:03:32.7]} 21... Rxd5 {[%clk 0:02:42.8]} 22.
Rxd5 {[%clk 0:03:32]} 22... Rxd5 {[%clk 0:02:41.7]} 23. g4 {[%clk 0:03:31.6]}
23... f6 {[%clk 0:02:35.5]} 24. Re4 {[%clk 0:03:26.4]} 24... Kc7 {[%clk
0:02:33]} 25. c4 {[%clk 0:03:23.7]} 25... Re5 {[%clk 0:02:24.5]} 26. Rxe5 {[%clk
0:03:15]} 26... fxe5 {[%clk 0:02:22.7]} 27. f3 {[%clk 0:03:14.9]} 27... Kc6
{[%clk 0:02:15.1]} 28. Kf2 {[%clk 0:03:14.1]} 28... Kc5 {[%clk 0:02:14.6]} 29.
b3 {[%clk 0:03:13]} 29... Kd4 {[%clk 0:02:13.8]} 30. h4 {[%clk 0:03:09.4]} 30...
Kc3 {[%clk 0:02:07.6]} 31. Ke3 {[%clk 0:03:05.7]} 31... Kb2 {[%clk 0:02:06.3]}
32. b4 {[%clk 0:03:04.7]} 32... Kxa2 {[%clk 0:01:56.2]} 33. c5 {[%clk
0:03:03.6]} 33... bxc5 {[%clk 0:01:54.7]} 34. bxc5 {[%clk 0:03:03.5]} 34... Nf7
{[%clk 0:01:53.4]} 35. c6 {[%clk 0:02:58.2]} 35... a5 {[%clk 0:01:52.1]} 36. g5
{[%clk 0:02:54.2]} 36... a4 {[%clk 0:01:46.8]} 37. g6 {[%clk 0:02:52.1]} 37...
hxg6 {[%clk 0:01:44.6]} 38. fxg6 {[%clk 0:02:52]} 38... Nd6 {[%clk 0:01:41.3]}
39. h5 {[%clk 0:02:50.9]} 39... a3 {[%clk 0:01:30.9]} 40. h6 {[%clk 0:02:50.1]}
40... Kb3 {[%clk 0:01:09]} 41. hxg7 {[%clk 0:02:47.9]} 41... Nf5+ {[%clk
0:01:02.4]} 42. Ke4 {[%clk 0:02:45.8]} 42... Nxg7 {[%clk 0:01:01.9]} 43. c7
{[%clk 0:02:44.4]} 43... a2 {[%clk 0:01:00.3]} 44. c8=Q {[%clk 0:02:42.9]} 44...
a1=Q {[%clk 0:00:58.3]} 45. Qg8+ {[%clk 0:02:40.5]} 45... Kb4 {[%clk 0:00:52.1]}
46. Qxg7 {[%clk 0:02:36.7]} 46... Qd4+ {[%clk 0:00:50.4]} 47. Kf5 {[%clk
0:02:33.7]} 47... Qf4+ {[%clk 0:00:46.9]} 48. Ke6 {[%clk 0:02:32.8]} 48... Qc4+
{[%clk 0:00:45.7]} 49. Ke7 {[%clk 0:02:21.8]} 49... Qc7+ {[%clk 0:00:40.7]} 50.
Kf6 {[%clk 0:02:18.3]} 50... Qc6+ {[%clk 0:00:33.9]} 51. Kg5 {[%clk 0:02:14.9]}
51... Qc1+ {[%clk 0:00:26.7]} 52. Kf6 {[%clk 0:02:01.3]} 52... Qc6+ {[%clk
0:00:23.4]} 53. Kf7 {[%clk 0:02:00.4]} 53... Qd7+ {[%clk 0:00:22.1]} 54. Kg8
{[%clk 0:01:59.1]} 54... Qe6+ {[%clk 0:00:04.9]} 55. Qf7 {[%clk 0:01:58.2]}
55... Qc6 {[%clk 0:00:00.6]} 56. g7 {[%clk 0:01:55.9]} 1-0

[Event "Live Chess"]
[Site "Chess.com"]
[Date "2024.06.01"]
[Round "-"]
[White "PureDashingOctopus"]
[Black "GEMdzq"]
[Result "0-1"]
[WhiteElo "2223"]
[BlackElo "2346"]
[TimeControl "300"]
[EndTime "9:26:26 PDT"]
[Termination "GEMdzq won on time"]

1. e4 {[%clk 0:04:58.4]} 1... Nf6 {[%clk 0:04:57.6]} 2. e5 {[%clk 0:04:57.4]}
2... Nd5 {[%clk 0:04:56.5]} 3. d4 {[%clk 0:04:57]} 3... d6 {[%clk 0:04:55.6]} 4.
exd6 {[%clk 0:04:56.1]} 4... cxd6 {[%clk 0:04:54.4]} 5. Nf3 {[%clk 0:04:55]}
5... g6 {[%clk 0:04:53.4]} 6. Be2 {[%clk 0:04:53.5]} 6... Bg7 {[%clk 0:04:52.8]}
7. O-O {[%clk 0:04:52.7]} 7... O-O {[%clk 0:04:51.9]} 8. a4 {[%clk 0:04:51.2]}
8... Bf5 {[%clk 0:04:42.9]} 9. Bd2 {[%clk 0:04:38.8]} 9... Nc6 {[%clk
0:04:40.1]} 10. c4 {[%clk 0:04:36.1]} 10... Ndb4 {[%clk 0:04:32.7]} 11. Na3
{[%clk 0:04:17.3]} 11... a5 {[%clk 0:04:23.8]} 12. Bc3 {[%clk 0:04:11.6]} 12...
e5 {[%clk 0:04:10.2]} 13. d5 {[%clk 0:04:06.7]} 13... Ne7 {[%clk 0:04:00.6]} 14.
Nb5 {[%clk 0:04:01.4]} 14... Bh6 {[%clk 0:03:26.5]} 15. Bxb4 {[%clk 0:03:19.9]}
15... axb4 {[%clk 0:03:25.1]} 16. Qb3 {[%clk 0:03:19.5]} 16... Bd7 {[%clk
0:03:18.2]} 17. Qxb4 {[%clk 0:03:16.4]} 17... Bxb5 {[%clk 0:03:17.3]} 18. axb5
{[%clk 0:03:13.3]} 18... Qd7 {[%clk 0:03:15.4]} 19. Rfd1 {[%clk 0:02:41.6]}
19... e4 {[%clk 0:02:48.2]} 20. Nd4 {[%clk 0:02:35.8]} 20... e3 {[%clk
0:02:47.1]} 21. f3 {[%clk 0:02:30.9]} 21... Nf5 {[%clk 0:02:38.5]} 22. Nc2
{[%clk 0:01:50.2]} 22... Qe7 {[%clk 0:02:13.8]} 23. Rxa8 {[%clk 0:01:32.9]}
23... Rxa8 {[%clk 0:02:12.3]} 24. Bd3 {[%clk 0:01:31.2]} 24... Nh4 {[%clk
0:02:07.8]} 25. Qe1 {[%clk 0:01:20.9]} 25... Qg5 {[%clk 0:02:00.1]} 26. Qg3
{[%clk 0:01:15.8]} 26... Qf6 {[%clk 0:01:50.7]} 27. Qe1 {[%clk 0:00:36.1]} 27...
Re8 {[%clk 0:01:43.2]} 28. Qe2 {[%clk 0:00:33.6]} 28... Qxb2 {[%clk 0:01:20.9]}
29. g3 {[%clk 0:00:30.1]} 29... Nf5 {[%clk 0:01:20]} 30. Bxf5 {[%clk 0:00:29.3]}
30... gxf5 {[%clk 0:01:19.4]} 31. f4 {[%clk 0:00:28.5]} 31... Bg7 {[%clk
0:01:13]} 32. Rd3 {[%clk 0:00:25.9]} 32... Re4 {[%clk 0:00:57.3]} 33. Rd1 {[%clk
0:00:13.5]} 33... Qc3 {[%clk 0:00:52.1]} 34. Re1 {[%clk 0:00:13]} 34... Rxc4
{[%clk 0:00:49.2]} 35. Nxe3 {[%clk 0:00:08.7]} 35... Re4 {[%clk 0:00:45.6]} 36.
Qf2 {[%clk 0:00:00.4]} 36... Bd4 {[%clk 0:00:44.1]} 0-1

[Event "Live Chess"]
[Site "Chess.com"]
[Date "2024.06.01"]
[Round "-"]
[White "Bob2pen"]
[Black "JP56789"]
[Result "0-1"]
[WhiteElo "1838"]
[BlackElo "2295"]
[TimeControl "300"]
[EndTime "9:26:35 PDT"]
[Termination "JP56789 won by resignation"]

1. c4 {[%clk 0:04:56.1]} 1... c6 {[%clk 0:04:59.9]} 2. g3 {[%clk 0:04:54.9]}
2... d5 {[%clk 0:04:59.8]} 3. Bg2 {[%clk 0:04:54.1]} 3... Nf6 {[%clk 0:04:59.5]}
4. Nf3 {[%clk 0:04:53.1]} 4... Bg4 {[%clk 0:04:58.7]} 5. O-O {[%clk 0:04:52]}
5... e6 {[%clk 0:04:58]} 6. b3 {[%clk 0:04:51]} 6... Be7 {[%clk 0:04:57.1]} 7.
Bb2 {[%clk 0:04:49.7]} 7... O-O {[%clk 0:04:56.6]} 8. d3 {[%clk 0:04:47.8]} 8...
c5 {[%clk 0:04:55.8]} 9. cxd5 {[%clk 0:04:45.7]} 9... exd5 {[%clk 0:04:55.7]}
10. Nbd2 {[%clk 0:04:44.4]} 10... Nc6 {[%clk 0:04:54.8]} 11. Rc1 {[%clk
0:04:42.9]} 11... Rc8 {[%clk 0:04:53.6]} 12. h3 {[%clk 0:04:39.5]} 12... Be6
{[%clk 0:04:51.3]} 13. Ne5 {[%clk 0:04:28.6]} 13... Nxe5 {[%clk 0:04:49.1]} 14.
Bxe5 {[%clk 0:04:27]} 14... b6 {[%clk 0:04:49]} 15. Kh2 {[%clk 0:04:16.5]} 15...
Bd6 {[%clk 0:04:47.3]} 16. Bxd6 {[%clk 0:04:13.7]} 16... Qxd6 {[%clk 0:04:47.2]}
17. Nf3 {[%clk 0:04:11]} 17... Rfd8 {[%clk 0:04:44.6]} 18. Qd2 {[%clk
0:04:06.3]} 18... h6 {[%clk 0:04:40.6]} 19. Qf4 {[%clk 0:04:04.3]} 19... Qxf4
{[%clk 0:04:38.4]} 20. gxf4 {[%clk 0:04:03]} 20... d4 {[%clk 0:04:35.8]} 21. Ne5
{[%clk 0:04:00.5]} 21... Bd5 {[%clk 0:04:34.6]} 22. Ng4 {[%clk 0:03:43.6]} 22...
Nh5 {[%clk 0:04:20.9]} 23. f5 {[%clk 0:03:29.1]} 23... Bxg2 {[%clk 0:04:15.6]}
24. Kxg2 {[%clk 0:03:27.8]} 24... Nf4+ {[%clk 0:04:15.3]} 25. Kf3 {[%clk
0:03:25.2]} 25... Nxh3 {[%clk 0:04:14.3]} 26. f6 {[%clk 0:03:20.6]} 26... Ng5+
{[%clk 0:04:07.3]} 27. Kg2 {[%clk 0:03:17.4]} 27... Re8 {[%clk 0:04:05.4]} 28.
f4 {[%clk 0:03:12.4]} 28... Rxe2+ {[%clk 0:03:54.9]} 29. Rf2 {[%clk 0:03:10.7]}
29... Rxf2+ {[%clk 0:03:52.8]} 30. Kxf2 {[%clk 0:03:09.6]} 30... Ne6 {[%clk
0:03:52.6]} 31. Kf3 {[%clk 0:03:06.5]} 31... h5 {[%clk 0:03:51.7]} 32. Ne5
{[%clk 0:02:59.5]} 32... gxf6 {[%clk 0:03:47.5]} 33. Rg1+ {[%clk 0:02:54.1]}
33... Kf8 {[%clk 0:03:47.1]} 34. Nd7+ {[%clk 0:02:52.1]} 34... Ke7 {[%clk
0:03:46.4]} 0-1

[Event "Live Chess"]
[Site "Chess.com"]
[Date "2024.06.01"]
[Round "-"]
[White "Berdgross"]
[Black "Nathaniel250"]
[Result "0-1"]
[WhiteElo "579"]
[BlackElo "1425"]
[TimeControl "300"]
[EndTime "9:26:43 PDT"]
[Termination "Nathaniel250 won by resignation"]

1. e4 {[%clk 0:04:55.9]} 1... c5 {[%clk 0:04:58.3]} 2. d3 {[%clk 0:04:55]} 2...
Nc6 {[%clk 0:04:55.9]} 3. Nf3 {[%clk 0:04:53.8]} 3... e6 {[%clk 0:04:53]} 4. Nc3
{[%clk 0:04:53.4]} 4... Nf6 {[%clk 0:04:51]} 5. a3 {[%clk 0:04:51.7]} 5... d5
{[%clk 0:04:47.8]} 6. exd5 {[%clk 0:04:49.3]} 6... exd5 {[%clk 0:04:47.7]} 7.
Bg5 {[%clk 0:04:45.2]} 7... Be7 {[%clk 0:04:42.8]} 8. Bxf6 {[%clk 0:04:43.5]}
8... Bxf6 {[%clk 0:04:40.8]} 9. Be2 {[%clk 0:04:33.2]} 9... Bxc3+ {[%clk
0:04:37.2]} 10. bxc3 {[%clk 0:04:31]} 10... O-O {[%clk 0:04:35.5]} 11. O-O
{[%clk 0:04:27.3]} 11... Re8 {[%clk 0:04:34.5]} 12. Re1 {[%clk 0:04:25.7]} 12...
Bg4 {[%clk 0:04:33]} 13. Bf1 {[%clk 0:04:17.1]} 13... Rxe1 {[%clk 0:04:29.7]}
14. Qxe1 {[%clk 0:04:15.3]} 14... Bxf3 {[%clk 0:04:28.9]} 15. gxf3 {[%clk
0:04:12.9]} 15... Qf6 {[%clk 0:04:08.7]} 16. c4 {[%clk 0:04:10.4]} 16... Nd4
{[%clk 0:04:02]} 17. cxd5 {[%clk 0:04:02.7]} 17... Nxf3+ {[%clk 0:03:59.5]} 18.
Kg2 {[%clk 0:03:56.8]} 18... Nxe1+ {[%clk 0:03:58.3]} 19. Rxe1 {[%clk
0:03:55.3]} 19... h6 {[%clk 0:03:52.1]} 20. Be2 {[%clk 0:03:50.9]} 20... Qg5+
{[%clk 0:03:48.9]} 21. Kf1 {[%clk 0:03:35.7]} 21... Qxd5 {[%clk 0:03:46.3]} 0-1

[Event "Live Chess"]
[Site "Chess.com"]
[Date "2024.06.01"]
[Round "-"]
[White "Dhaydon19"]
[Black "E2E4colchester"]
[Result "1-0"]
[WhiteElo "2709"]
[BlackElo "989"]
[TimeControl "300"]
[EndTime "9:26:53 PDT"]
[Termination "Dhaydon19 won by resignation"]

1. d4 {[%clk 0:04:58.5]} 1... d5 {[%clk 0:04:54.8]} 2. Nf3 {[%clk 0:04:57.2]}
2... Nc6 {[%clk 0:04:53.1]} 3. g3 {[%clk 0:04:56.9]} 3... e6 {[%clk 0:04:51.7]}
4. c3 {[%clk 0:04:56.6]} 4... Nf6 {[%clk 0:04:50.8]} 5. Bg2 {[%clk 0:04:56.3]}
5... Be7 {[%clk 0:04:49.5]} 6. O-O {[%clk 0:04:56]} 6... O-O {[%clk 0:04:48.2]}
7. Nbd2 {[%clk 0:04:55.7]} 7... Re8 {[%clk 0:04:46.4]} 8. Re1 {[%clk 0:04:55.4]}
8... b6 {[%clk 0:04:43.2]} 9. e4 {[%clk 0:04:55]} 9... dxe4 {[%clk 0:04:40.7]}
10. Nxe4 {[%clk 0:04:53.7]} 10... Nxe4 {[%clk 0:04:39.7]} 11. Rxe4 {[%clk
0:04:53.4]} 11... Bf6 {[%clk 0:04:36.8]} 12. Qc2 {[%clk 0:04:51.4]} 12... Ba6
{[%clk 0:04:30.1]} 13. h4 {[%clk 0:04:48.9]} 13... Qd5 {[%clk 0:04:23.8]} 14.
Re1 {[%clk 0:04:46.8]} 14... h6 {[%clk 0:04:18.2]} 15. Ng5 {[%clk 0:04:43.4]}
15... Bxg5 {[%clk 0:04:09.4]} 16. Bxd5 {[%clk 0:04:41.5]} 16... exd5 {[%clk
0:04:05.7]} 17. Rxe8+ {[%clk 0:04:40.1]} 17... Rxe8 {[%clk 0:04:04.6]} 18. hxg5
{[%clk 0:04:39.7]} 18... hxg5 {[%clk 0:04:02.8]} 19. Bxg5 {[%clk 0:04:38.4]}
19... Re4 {[%clk 0:04:00.9]} 20. Be3 {[%clk 0:04:37.2]} 20... g6 {[%clk
0:03:56.6]} 21. Re1 {[%clk 0:04:36.2]} 21... Na5 {[%clk 0:03:50.9]} 22. Bd2
{[%clk 0:04:35.3]} 22... Nc4 {[%clk 0:03:49.6]} 23. Rxe4 {[%clk 0:04:34]} 23...
dxe4 {[%clk 0:03:48.4]} 24. Bf4 {[%clk 0:04:33.3]} 24... f5 {[%clk 0:03:45.5]}
25. Bxc7 {[%clk 0:04:31.4]} 25... b5 {[%clk 0:03:33.3]} 26. b3 {[%clk
0:04:29.6]} 26... Na3 {[%clk 0:03:31.2]} 27. Qb2 {[%clk 0:04:28.8]} 27... b4
{[%clk 0:03:21.1]} 28. cxb4 {[%clk 0:04:27.9]} 28... Nb5 {[%clk 0:03:20.3]} 29.
Be5 {[%clk 0:04:27.4]} 29... Nc7 {[%clk 0:03:16]} 30. Bxc7 {[%clk 0:04:25.9]}
30... Bb5 {[%clk 0:03:13.3]} 31. d5 {[%clk 0:04:24.5]} 31... Ba6 {[%clk
0:03:10.8]} 32. Qf6 {[%clk 0:04:23.5]} 1-0

[Event "Live Chess"]
[Site "Chess.com"]
[Date "2024.06.01"]
[Round "-"]
[White "Trendle"]
[Black "Queensandpawns"]
[Result "0-1"]
[WhiteElo "2611"]
[BlackElo "2466"]
[TimeControl "300"]
[EndTime "9:27:06 PDT"]
[Termination "Queensandpawns won by resignation"]

1. d4 {[%clk 0:04:56.7]} 1... Nc6 {[%clk 0:04:56.2]} 2. Nf3 {[%clk 0:04:54.7]}
2... d6 {[%clk 0:04:55.4]} 3. e4 {[%clk 0:04:49]} 3... Nf6 {[%clk 0:04:54.9]} 4.
Nc3 {[%clk 0:04:48]} 4... g6 {[%clk 0:04:54.2]} 5. h3 {[%clk 0:04:37.9]} 5...
Bg7 {[%clk 0:04:52.7]} 6. Bg5 {[%clk 0:04:36]} 6... O-O {[%clk 0:04:51.8]} 7.
Qd2 {[%clk 0:04:34.4]} 7... e5 {[%clk 0:04:51.1]} 8. O-O-O {[%clk 0:04:29.2]}
8... exd4 {[%clk 0:04:49.6]} 9. Nxd4 {[%clk 0:04:27.3]} 9... Nxd4 {[%clk
0:04:47.5]} 10. Qxd4 {[%clk 0:04:25.3]} 10... h6 {[%clk 0:04:47.2]} 11. Bh4
{[%clk 0:03:47.4]} 11... g5 {[%clk 0:04:45.2]} 12. Bg3 {[%clk 0:03:47]} 12...
Re8 {[%clk 0:04:43]} 13. Qd3 {[%clk 0:03:25.3]} 13... Nd7 {[%clk 0:04:31.5]} 14.
h4 {[%clk 0:03:21]} 14... Nc5 {[%clk 0:04:30.3]} 15. Qd2 {[%clk 0:03:09.8]}
15... g4 {[%clk 0:04:19.9]} 16. f3 {[%clk 0:03:05.8]} 16... h5 {[%clk
0:04:17.5]} 17. Kb1 {[%clk 0:03:03.7]} 17... a6 {[%clk 0:04:14.2]} 18. Nd5
{[%clk 0:02:54.5]} 18... c6 {[%clk 0:04:05.7]} 19. Ne3 {[%clk 0:02:47.8]} 19...
Qf6 {[%clk 0:04:00.1]} 20. c3 {[%clk 0:02:44.8]} 20... gxf3 {[%clk 0:03:47]} 21.
e5 {[%clk 0:02:34.3]} 21... Qg6+ {[%clk 0:03:44.3]} 22. Bd3 {[%clk 0:02:30.7]}
22... Qxg3 {[%clk 0:03:31.3]} 23. gxf3 {[%clk 0:02:25.6]} 23... Qxe5 {[%clk
0:03:30.1]} 24. Nc4 {[%clk 0:02:22.7]} 24... Qd5 {[%clk 0:03:22.8]} 25. Rhg1
{[%clk 0:02:14.2]} 25... Qxd3+ {[%clk 0:03:20.2]} 26. Qxd3 {[%clk 0:02:12.6]}
26... Nxd3 {[%clk 0:03:20.1]} 27. Rxd3 {[%clk 0:02:11]} 27... Bf5 {[%clk
0:03:19.4]} 0-1

[Event "Live Chess"]
[Site "Chess.com"]
[Date "2024.06.01"]
[Round "-"]
[White "Trecregin"]
[Black "seasidecastle27"]
[Result "1-0"]
[WhiteElo "1829"]
[BlackElo "1962"]
[TimeControl "300"]
[EndTime "9:27:10 PDT"]
[Termination "Trecregin won by resignation"]

1. e4 {[%clk 0:04:58.6]} 1... e6 {[%clk 0:04:58.5]} 2. d4 {[%clk 0:04:57.2]}
2... d5 {[%clk 0:04:56.5]} 3. Nc3 {[%clk 0:04:55.6]} 3... dxe4 {[%clk
0:04:55.3]} 4. Nxe4 {[%clk 0:04:54.5]} 4... Be7 {[%clk 0:04:54.5]} 5. Nf3 {[%clk
0:04:53.3]} 5... Nf6 {[%clk 0:04:53.7]} 6. Bd3 {[%clk 0:04:50.5]} 6... Bd7
{[%clk 0:04:52.7]} 7. Qe2 {[%clk 0:04:48.8]} 7... Bc6 {[%clk 0:04:50]} 8. c3
{[%clk 0:04:47.5]} 8... Qd5 {[%clk 0:04:45.3]} 9. Nxf6+ {[%clk 0:04:32.4]} 9...
Bxf6 {[%clk 0:04:43.8]} 10. O-O {[%clk 0:04:31.5]} 10... Nd7 {[%clk 0:04:39]}
11. c4 {[%clk 0:04:30]} 11... Qh5 {[%clk 0:04:35.1]} 12. d5 {[%clk 0:04:28.3]}
12... Ba4 {[%clk 0:04:19.8]} 13. dxe6 {[%clk 0:04:14.3]} 13... O-O-O {[%clk
0:03:52.3]} 14. exd7+ {[%clk 0:04:06.6]} 14... Rxd7 {[%clk 0:03:50.3]} 15. Bf4
{[%clk 0:03:57.5]} 15... Bc6 {[%clk 0:03:45.7]} 16. Rad1 {[%clk 0:03:43.3]}
16... Qg4 {[%clk 0:03:35.8]} 17. Bg3 {[%clk 0:03:36.7]} 17... h5 {[%clk
0:03:33]} 18. h3 {[%clk 0:03:33.6]} 18... Bxf3 {[%clk 0:03:20.3]} 19. Qxf3
{[%clk 0:03:25.9]} 19... Qxf3 {[%clk 0:03:10.8]} 20. gxf3 {[%clk 0:03:23.8]}
20... Kb8 {[%clk 0:03:00.6]} 21. Bf5 {[%clk 0:03:22.1]} 21... Re7 {[%clk
0:02:56.8]} 22. Rfe1 {[%clk 0:03:19.6]} 22... Rxe1+ {[%clk 0:02:50.1]} 23. Rxe1
{[%clk 0:03:18.1]} 23... Bxb2 {[%clk 0:02:46.5]} 24. Re7 {[%clk 0:03:13.9]}
24... g6 {[%clk 0:02:35.3]} 25. Be4 {[%clk 0:03:01.6]} 25... f5 {[%clk 0:02:32]}
26. Rxc7 {[%clk 0:02:49.7]} 26... fxe4 {[%clk 0:02:23.4]} 27. Rh7+ {[%clk
0:02:47.7]} 27... Kc8 {[%clk 0:02:21.2]} 28. Rc7+ {[%clk 0:02:39]} 28... Kb8
{[%clk 0:02:16.3]} 29. fxe4 {[%clk 0:02:33.7]} 29... h4 {[%clk 0:02:09.3]} 30.
Bd6 {[%clk 0:02:27.4]} 30... Rc8 {[%clk 0:01:57.1]} 31. Rc6+ {[%clk 0:02:18.6]}
1-0

[Event "Live Chess"]
[Site "Chess.com"]
[Date "2024.06.01"]
[Round "-"]
[White "YrrriKharkiv"]
[Black "blunderabit"]
[Result "1-0"]
[WhiteElo "2104"]
[BlackElo "1816"]
[TimeControl "300"]
[EndTime "9:27:25 PDT"]
[Termination "YrrriKharkiv won on time"]

1. d4 {[%clk 0:04:56]} 1... d5 {[%clk 0:04:56.6]} 2. Bf4 {[%clk 0:04:54]} 2...
Nf6 {[%clk 0:04:52.9]} 3. e3 {[%clk 0:04:52.4]} 3... c5 {[%clk 0:04:50.8]} 4.
Nc3 {[%clk 0:04:51]} 4... a6 {[%clk 0:04:45.6]} 5. a4 {[%clk 0:04:48.9]} 5...
cxd4 {[%clk 0:04:40]} 6. exd4 {[%clk 0:04:47.1]} 6... Nc6 {[%clk 0:04:39.6]} 7.
Nf3 {[%clk 0:04:45]} 7... Bf5 {[%clk 0:04:37.9]} 8. Bd3 {[%clk 0:04:43.7]} 8...
Bxd3 {[%clk 0:04:26.6]} 9. Qxd3 {[%clk 0:04:42.1]} 9... e6 {[%clk 0:04:26.1]}
10. O-O {[%clk 0:04:39.2]} 10... Be7 {[%clk 0:04:19.5]} 11. Rfe1 {[%clk
0:04:36.7]} 11... O-O {[%clk 0:04:17.5]} 12. Ng5 {[%clk 0:04:31.3]} 12... h6
{[%clk 0:04:09.1]} 13. Nf3 {[%clk 0:04:29.7]} 13... Rc8 {[%clk 0:04:01.5]} 14.
Ne5 {[%clk 0:04:19.4]} 14... Nxe5 {[%clk 0:03:48.2]} 15. Bxe5 {[%clk 0:04:18.1]}
15... Bd6 {[%clk 0:03:39.4]} 16. Bg3 {[%clk 0:04:08.6]} 16... Bb4 {[%clk
0:03:22.4]} 17. Bh4 {[%clk 0:04:00.1]} 17... Bxc3 {[%clk 0:03:20.2]} 18. bxc3
{[%clk 0:03:58.2]} 18... g5 {[%clk 0:03:18.9]} 19. Bg3 {[%clk 0:03:53.5]} 19...
Ne4 {[%clk 0:03:17.2]} 20. Ra3 {[%clk 0:03:40]} 20... Qa5 {[%clk 0:03:08.5]} 21.
Re3 {[%clk 0:03:28.6]} 21... Rc6 {[%clk 0:02:46.1]} 22. f3 {[%clk 0:03:21]}
22... Nd6 {[%clk 0:02:40.4]} 23. Bxd6 {[%clk 0:03:16.9]} 23... Rxd6 {[%clk
0:02:38.9]} 24. h4 {[%clk 0:03:13]} 24... Qd8 {[%clk 0:02:16]} 25. Re5 {[%clk
0:03:01.5]} 25... Kg7 {[%clk 0:01:58.4]} 26. Rb3 {[%clk 0:02:56.4]} 26... Rd7
{[%clk 0:01:37.4]} 27. hxg5 {[%clk 0:02:52.7]} 27... hxg5 {[%clk 0:01:34.8]} 28.
Qe3 {[%clk 0:02:51.8]} 28... Kh6 {[%clk 0:01:03.4]} 29. Kf2 {[%clk 0:02:34]}
29... Rg8 {[%clk 0:00:48.2]} 30. Rb1 {[%clk 0:02:31.7]} 30... Rg6 {[%clk
0:00:46.5]} 31. f4 {[%clk 0:02:24.1]} 31... Kg7 {[%clk 0:00:44.4]} 32. fxg5
{[%clk 0:02:19]} 32... Qh8 {[%clk 0:00:39.1]} 33. Rf1 {[%clk 0:02:00.6]} 33...
Qh4+ {[%clk 0:00:28.8]} 34. Qg3 {[%clk 0:01:58.2]} 34... Qxg3+ {[%clk 0:00:27]}
35. Kxg3 {[%clk 0:01:57]} 35... Rc7 {[%clk 0:00:24.7]} 36. Rf3 {[%clk
0:01:52.4]} 36... Rc4 {[%clk 0:00:23.2]} 37. a5 {[%clk 0:01:49.8]} 37... Ra4
{[%clk 0:00:20.5]} 38. Re1 {[%clk 0:01:47]} 38... Rxa5 {[%clk 0:00:19]} 39. Ref1
{[%clk 0:01:46.1]} 39... f6 {[%clk 0:00:13.7]} 40. Rxf6 {[%clk 0:01:44.7]} 40...
Rb5 {[%clk 0:00:10]} 41. Rxg6+ {[%clk 0:01:42.3]} 41... Kxg6 {[%clk 0:00:07.8]}
42. Kg4 {[%clk 0:01:38]} 42... Rb6 {[%clk 0:00:06]} 43. Rf6+ {[%clk 0:01:37.5]}
43... Kg7 {[%clk 0:00:04.3]} 44. Kh5 {[%clk 0:01:35]} 44... a5 {[%clk
0:00:03.4]} 45. Rg6+ {[%clk 0:01:33.8]} 45... Kf8 {[%clk 0:00:01.1]} 46. Kh6
{[%clk 0:01:30.2]} 1-0